[Event "XLII Barbera Open 2019"]
[Site "Barbera"]
[Date "2019.07.12"]
[Round "9.5"]
[White "Sturt, Raven"]
[Black "Bobadilla Viera, Jorge Samuel"]
[Result "1-0"]
[ECO "A45"]
[WhiteElo "2429"]
[BlackElo "2381"]
[Annotator "NA"]
[PlyCount "119"]
[EventDate "2019.07.04"]
[EventType "swiss"]
[EventCountry "ESP"]
[SourceTitle "playchess.com"]
[Source "ChessBase"]
[SourceQuality "1"]
[TimeControl "5400+30"]

1. d4 {[%emt 0:00:00]} Nf6 {[%emt 0:00:00]} 2. Bg5 {[%emt 0:00:00]} d5 {[%emt 0:00:00]} 3. Bxf6 {[%emt 0:00:00]} exf6 {[%emt 0:02:23]} 4. e3 {[%emt 0:00:00]} Bd6 {[%emt 0:00:40]} 5. Nd2 {[%emt 0:00:02]} O-O {[%emt 0:00:28]} 6. Qf3 {[%emt 0:00:19]} Be6 7. Bd3 {[%emt 0:00:11]} Nc6 {[%emt 0:10:48]} 8. c3 Ne7 {[%emt 0:00:46]} 9. Ne2 {[%emt 0:03:55]} Qd7 {[%emt 0:00:35]} 10. h3 {[%emt 0:02:56]} Bf5 {[%emt 0:03:57]} 11. Bxf5 {[%emt 0:02:56]} Qxf5 {[%emt 0:00:39]} 12. Qxf5 {[%emt 0:07:17]} Nxf5 {[%emt 0:01:18]} 13. O-O {[%emt 0:00:58]} Rfe8 {[%emt 0:04:01]} 14. Rfc1 {[%emt 0:03:54]} Ne7 {[%emt 0:14:06]} 15. a3 {[%emt 0:05:07]} f5 {[%emt 0:01:13]} 16. c4 {[%emt 0:02:37]} c6 {[%emt 0:00:02]} 17. Nc3 {[%emt 0:06:05]} Rad8 {[%emt 0:08:06]} 18. b4 {[%emt 0:19:04]} f4 {[%emt 0:02:00]} 19. e4 {[%emt 0:01:52]} dxe4 {[%emt 0:07:14]} 20. Ndxe4 {[%emt 0:00:48]} Bc7 {[%emt 0:04:44]} 21. Rd1 {[%emt 0:00:32]} Nf5 {[%emt 0:04:15]} 22. d5 {[%emt 0:07:34]} cxd5 {[%emt 0:06:11]} 23. Nxd5 {[%emt 0:00:09]} Be5 {[%emt 0:02:32]} 24. Ra2 {[%emt 0:02:10]} f3 {[%emt 0:02:04]} 25. gxf3 {[%emt 0:03:25]} Nh4 {[%emt 0:00:18]} 26. Rd3 {[%emt 0:01:40]} f5 {[%emt 0:03:17]} 27. Ng3 {[%emt 0:03:18]} Kf7 {[%emt 0:05:14]} 28. Rad2 {[%emt 0:05:08]} b5 {[%emt 0:03:20]} 29. cxb5 {[%emt 0:01:06]} Rd6 {[%emt 0:03:05]} 30. Kf1 {[%emt 0:00:58]} Rg6 {[%emt 0:01:21]} 31. f4 {[%emt 0:00:39]} Bd6 {[%emt 0:00:32]} 32. Nf6 {[%emt 0:05:19]} Nf3 {[%emt 0:09:04]} 33. Rxf3 {[%emt 0:01:27]} Rxf6 {[%emt 0:00:03]} 34. Nxf5 {[%emt 0:00:11]} Bxb4 {[%emt 0:01:19]} 35. Rd7+ {[%emt 0:03:12]} Ke6 {[%emt 0:01:10]} 36. Rxa7 {[%emt 0:00:11]} Kxf5 {[%emt 0:00:21]} 37. axb4 {[%emt 0:00:01]} Re4 {[%emt 0:00:53]} 38. Rxg7 {[%emt 0:00:26]} h6 39. Rc3 {[%emt 0:03:37]} Rxb4 {[%emt 0:00:57]} 40. Rc5+ {[%emt 0:00:12]} Ke4 {[%emt 0:00:12]} 41. Kg2 {[%emt 0:01:47]} Rb2 {[%emt 0:00:19]} 42. Rg4 {[%emt 0:00:53]} Rf5 {[%emt 0:00:55]} 43. Re5+ {[%emt 0:01:03]} Rxe5 44. fxe5+ {[%emt 0:00:02]} Kxe5 {[%emt 0:00:09]} 45. Rh4 {[%emt 0:00:05]} Kf5 {[%emt 0:00:33]} 46. Rxh6 {[%emt 0:00:11]} Kg5 {[%emt 0:00:01]} 47. Rb6 {[%emt 0:00:07]} Rb3 {[%emt 0:00:04]} 48. Rb8 {[%emt 0:00:07]} Kg6 {[%emt 0:00:09]} 49. b6 {[%emt 0:00:04]} Kg7 {[%emt 0:00:06]} 50. b7 {[%emt 0:00:24]} Kh7 {[%emt 0:00:37]} 51. f4 {[%emt 0:00:04]} Kg7 {[%emt 0:00:05]} 52. f5 {[%emt 0:00:03]} Kh7 {[%emt 0:01:42]} 53. f6 {[%emt 0:00:09]} Rb2+ {[%emt 0:00:04]} 54. Kg3 {[%emt 0:00:14]} Rb3+ {[%emt 0:00:09]} 55. Kg4 {[%emt 0:00:04]} Rb4+ {[%emt 0:00:07]} 56. Kf5 {[%emt 0:00:06]} Rb5+ {[%emt 0:00:05]} 57. Ke6 {[%emt 0:00:04]} Rb6+ {[%emt 0:00:12]} 58. Ke7 {[%emt 0:00:05]} Rb3 {[%emt 0:00:41]} 59. f7 {[%emt 0:00:06]} Re3+ {[%emt 0:00:04]} 60. Kd6 {[%emt 0:00:03]} 1-0

[Event "XLII Barbera Open 2019"]
[Site "Barbera"]
[Date "2019.07.12"]
[Round "9.6"]
[White "Perez Mitjans, Orelvis"]
[Black "Leon Valdes, Jony Wilson"]
[Result "1/2-1/2"]
[ECO "C05"]
[WhiteElo "2416"]
[BlackElo "2364"]
[Annotator "NA"]
[PlyCount "21"]
[EventDate "2019.07.04"]
[EventType "swiss"]
[EventCountry "ESP"]
[SourceTitle "playchess.com"]
[Source "ChessBase"]
[SourceQuality "1"]
[TimeControl "5400+30"]

1. e4 {[%emt 0:00:00]} e6 {[%emt 0:00:00]} 2. d4 {[%emt 0:00:00]} d5 {[%emt 0:00:00]} 3. Nd2 {[%emt 0:00:00]} Nf6 {[%emt 0:00:00]} 4. e5 {[%emt 0:00:00]} Nfd7 {[%emt 0:00:00]} 5. f4 {[%emt 0:00:05]} c5 {[%emt 0:00:00]} 6. c3 {[%emt 0:00:12]} Nc6 {[%emt 0:00:02]} 7. Ndf3 {[%emt 0:00:07]} Qb6 {[%emt 0:00:22]} 8. Ne2 {[%emt 0:00:13]} Be7 {[%emt 0:00:06]} 9. g3 {[%emt 0:00:10]} O-O {[%emt 0:00:28]} 10. Bh3 {[%emt 0:00:06]} f6 {[%emt 0:00:52]} 11. Bf1 1/2-1/2

[Event "XLII Barbera Open 2019"]
[Site "Barbera"]
[Date "2019.07.12"]
[Round "9.7"]
[White "Vehi Bach, Victor Manuel"]
[Black "Harikrishnan.A.Ra"]
[Result "1/2-1/2"]
[ECO "C48"]
[WhiteElo "2339"]
[BlackElo "2401"]
[Annotator "NA"]
[PlyCount "117"]
[EventDate "2019.07.04"]
[EventType "swiss"]
[EventCountry "ESP"]
[SourceTitle "playchess.com"]
[Source "ChessBase"]
[SourceQuality "1"]
[TimeControl "5400+30"]

1. e4 {[%emt 0:00:00]} e5 {[%emt 0:00:00]} 2. Nf3 {[%emt 0:00:00]} Nc6 {[%emt 0:00:00]} 3. Nc3 {[%emt 0:00:00]} Nf6 {[%emt 0:00:00]} 4. Bb5 {[%emt 0:00:00]} Bd6 {[%emt 0:00:06]} 5. O-O {[%emt 0:01:46]} a6 {[%emt 0:01:16]} 6. Ba4 {[%emt 0:05:54]} b5 {[%emt 0:00:58]} 7. Bb3 {[%emt 0:00:09]} O-O {[%emt 0:07:41]} 8. d3 {[%emt 0:00:22]} Be7 {[%emt 0:06:15]} 9. Bd5 {[%emt 0:25:07]} Nxd5 {[%emt 0:06:54]} 10. exd5 {[%emt 0:00:09]} Nd4 {[%emt 0:01:59]} 11. Nxe5 {[%emt 0:00:13]} d6 {[%emt 0:03:41]} 12. Nc6 {[%emt 0:00:18]} Nxc6 {[%emt 0:00:01]} 13. dxc6 {[%emt 0:00:09]} d5 {[%emt 0:01:46]} 14. Qf3 {[%emt 0:08:34]} Be6 {[%emt 0:00:33]} 15. Bf4 {[%emt 0:02:22]} Bf6 {[%emt 0:08:12]} 16. Qg3 {[%emt 0:04:38]} Bh4 {[%emt 0:13:21]} 17. Bxc7 {[%emt 0:05:07]} Bxg3 {[%emt 0:00:07]} 18. Bxd8 {[%emt 0:00:06]} Bxh2+ {[%emt 0:00:06]} 19. Kxh2 {[%emt 0:00:01]} Rfxd8 {[%emt 0:00:09]} 20. Ne2 {[%emt 0:09:31]} d4 {[%emt 0:00:32]} 21. Rfc1 {[%emt 0:00:06]} Rac8 {[%emt 0:02:50]} 22. c3 {[%emt 0:00:08]} dxc3 {[%emt 0:00:03]} 23. Rxc3 {[%emt 0:00:09]} b4 {[%emt 0:00:04]} 24. Rc5 {[%emt 0:00:27]} Rxd3 {[%emt 0:00:02]} 25. Nf4 {[%emt 0:02:05]} Rd2 {[%emt 0:05:54]} 26. b3 {[%emt 0:14:06]} Kf8 {[%emt 0:01:29]} 27. Nxe6+ {[%emt 0:12:10]} fxe6 {[%emt 0:00:01]} 28. Kg3 {[%emt 0:03:01]} Ke7 {[%emt 0:01:59]} 29. Rc4 {[%emt 0:01:44]} a5 {[%emt 0:02:59]} 30. Rc5 {[%emt 0:03:14]} Rd5 {[%emt 0:00:45]} 31. Rc2 {[%emt 0:00:02]} Rd3+ {[%emt 0:01:43]} 32. f3 {[%emt 0:00:15]} Rc3 {[%emt 0:00:16]} 33. Rxc3 {[%emt 0:00:48]} bxc3 {[%emt 0:00:02]} 34. Kf4 {[%emt 0:00:10]} Rxc6 {[%emt 0:01:18]} 35. Rc1 {[%emt 0:00:31]} Rd6 {[%emt 0:09:08]} 36. Rxc3 {[%emt 0:00:08]} Rd2 {[%emt 0:00:05]} 37. g4 {[%emt 0:02:23]} Rxa2 {[%emt 0:00:46]} 38. Rc7+ {[%emt 0:00:51]} Kf6 {[%emt 0:00:04]} 39. g5+ {[%emt 0:00:45]} Kg6 {[%emt 0:00:20]} 40. Rc6 {[%emt 0:00:24]} Re2 {[%emt 0:03:38]} 41. Ra6 {[%emt 0:00:01]} Re1 {[%emt 0:04:25]} 42. Rxa5 {[%emt 0:00:16]} Rd1 {[%emt 0:00:14]} 43. Re5 {[%emt 0:01:31]} Rd4+ {[%emt 0:03:44]} 44. Re4 {[%emt 0:00:03]} Rd6 {[%emt 0:00:06]} 45. b4 {[%emt 0:00:46]} Rb6 {[%emt 0:00:28]} 46. Kg4 {[%emt 0:00:42]} Kf7 {[%emt 0:00:07]} 47. f4 {[%emt 0:00:08]} Rb5 {[%emt 0:01:33]} 48. Rc4 {[%emt 0:00:01]} Rb7 {[%emt 0:00:39]} 49. Re4 {[%emt 0:00:31]} g6 {[%emt 0:01:12]} 50. Kf3 {[%emt 0:00:12]} Ke7 {[%emt 0:00:52]} 51. Ke3 {[%emt 0:00:01]} Ra7 {[%emt 0:01:17]} 52. Kd4 {[%emt 0:00:50]} Kd6 {[%emt 0:00:30]} 53. Kc4 {[%emt 0:00:16]} Rc7+ {[%emt 0:03:16]} 54. Kb5 {[%emt 0:00:16]} Kd5 {[%emt 0:00:26]} 55. Re5+ {[%emt 0:00:20]} Kd6 {[%emt 0:00:01]} 56. Re2 {[%emt 0:01:01]} Kd5 {[%emt 0:01:33]} 57. Re5+ {[%emt 0:00:22]} Kd6 {[%emt 0:00:02]} 58. Re1 {[%emt 0:00:36]} Kd5 {[%emt 0:00:14]} 59. Re5+ {[%emt 0:02:19] Kxe5} 1/2-1/2

[Event "XLII Barbera Open 2019"]
[Site "Barbera"]
[Date "2019.07.12"]
[Round "9.8"]
[White "Lopez Gonzalez, Abel Fabian"]
[Black "Sreeshwan Maralakshikari"]
[Result "1/2-1/2"]
[ECO "D10"]
[WhiteElo "2355"]
[BlackElo "2461"]
[Annotator "ChessBase"]
[PlyCount "80"]
[EventDate "2019.07.04"]
[EventType "swiss"]
[EventCountry "ESP"]
[SourceTitle "playchess.com"]
[Source "ChessBase"]
[SourceQuality "1"]
[TimeControl "5400+30"]

1. d4 {[%emt 0:06:16]} d5 {[%emt 0:00:00]} 2. c4 {[%emt 0:00:13]} c6 {[%emt 0:00:00]} 3. cxd5 {[%emt 0:00:06]} cxd5 {[%emt 0:00:00]} 4. Bf4 {[%emt 0:00:05]} Nf6 {[%emt 0:00:00]} 5. e3 {[%emt 0:00:07]} Nc6 {[%emt 0:00:00]} 6. Nc3 {[%emt 0:00:06]} Bg4 {[%emt 0:00:00]} 7. Qb3 {[%emt 0:00:50]} Na5 {[%emt 0:00:00]} 8. Qa4+ {[%emt 0:00:05]} Bd7 {[%emt 0:00:02]} 9. Qc2 {[%emt 0:00:04]} e6 {[%emt 0:00:04]} 10. Nf3 {[%emt 0:00:10]} Be7 {[%emt 0:00:17]} 11. h3 {[%emt 0:00:06]} Rc8 {[%emt 0:00:15]} 12. Bd3 {[%emt 0:00:08]} Nc6 {[%emt 0:00:48]} 13. O-O {[%emt 0:04:02]} Nb4 {[%emt 0:00:07]} 14. Qd1 {[%emt 0:00:01]} Nxd3 {[%emt 0:00:06]} 15. Qxd3 {[%emt 0:00:03]} O-O {[%emt 0:02:56]} 16. Rfc1 {[%emt 0:09:24]} Qb6 {[%emt 0:01:29]} 17. Rc2 {[%emt 0:04:40]} Bb4 {[%emt 0:06:22]} 18. Ne5 {[%emt 0:07:26]} Bxc3 {[%emt 0:00:41]} 19. Nxd7 {[%emt 0:00:12]} Nxd7 {[%emt 0:00:05]} 20. Rac1 {[%emt 0:03:41]} Rc6 {[%emt 0:01:32]} 21. Rxc3 {[%emt 0:01:55]} Rfc8 {[%emt 0:00:29]} 22. b3 {[%emt 0:11:05]} h6 {[%emt 0:01:57]} 23. f3 {[%emt 0:01:21]} Qa5 {[%emt 0:30:59]} 24. Rxc6 {[%emt 0:00:11]} Rxc6 {[%emt 0:00:04]} 25. Rxc6 {[%emt 0:00:34]} bxc6 {[%emt 0:00:04]} 26. Qc2 Qb6 {[%emt 0:02:39]} 27. Kh2 {[%emt 0:04:07]} a6 {[%emt 0:03:56]} 28. Bd6 {[%emt 0:07:27]} g6 {[%emt 0:01:34]} 29. Qc1 {[%emt 0:10:24]} Kg7 {[%emt 0:07:12]} 30. Qa3 {[%emt 0:00:08]} e5 {[%emt 0:10:04]} 31. Qb2 {[%emt 0:03:17]} exd4 {[%emt 0:01:04]} 32. exd4 {[%emt 0:00:07]} Nf8 {[%emt 0:01:03]} 33. Qa3 {[%emt 0:04:59]} Nd7 {[%emt 0:01:31]} 34. Qc1 {[%emt 0:02:21]} Qxd4 {[%emt 0:10:22]} 35. Qxc6 {[%emt 0:03:19]} Ne5 {[%emt 0:00:04]} 36. Qe8 {[%emt 0:05:22]} Qf4+ {[%emt 0:00:32]} 37. Kh1 {[%emt 0:00:18]} Qc1+ {[%emt 0:00:34]} 38. Kh2 {[%emt 0:00:04]} Qf4+ {[%emt 0:00:45]} 39. Kh1 {[%emt 0:00:01]} Qc1+ {[%emt 0:00:33]} 40. Kh2 {[%emt 0:00:06]} Qf4+ {[%emt 0:00:04]} 1/2-1/2

[Event "XLII Barbera Open 2019"]
[Site "Barbera"]
[Date "2019.07.12"]
[Round "9.9"]
[White "Valenzuela Gomez, Fernando"]
[Black "Vergara Jofre, Felipe"]
[Result "0-1"]
[ECO "B41"]
[WhiteElo "2394"]
[BlackElo "2332"]
[Annotator "NA"]
[PlyCount "142"]
[EventDate "2019.07.04"]
[EventType "swiss"]
[EventCountry "ESP"]
[SourceTitle "playchess.com"]
[Source "ChessBase"]
[SourceQuality "1"]
[TimeControl "5400+30"]

1. e4 {[%emt 0:00:00]} c5 {[%emt 0:00:00]} 2. Nf3 {[%emt 0:00:00]} e6 {[%emt 0:00:00]} 3. d4 {[%emt 0:00:00]} cxd4 {[%emt 0:00:04]} 4. Nxd4 {[%emt 0:00:00]} a6 {[%emt 0:00:15]} 5. c4 {[%emt 0:00:00]} Nf6 {[%emt 0:00:09]} 6. Nc3 {[%emt 0:00:00]} Qc7 {[%emt 0:00:12]} 7. Be3 {[%emt 0:01:01]} Bb4 {[%emt 0:02:26]} 8. f3 {[%emt 0:00:59]} O-O {[%emt 0:00:29]} 9. Rc1 {[%emt 0:13:39]} d5 {[%emt 0:16:37]} 10. cxd5 {[%emt 0:06:27]} exd5 {[%emt 0:00:06]} 11. Bd3 {[%emt 0:00:42]} dxe4 {[%emt 0:03:58]} 12. Bxe4 {[%emt 0:05:23]} Nxe4 {[%emt 0:12:17]} 13. fxe4 {[%emt 0:00:20]} Qe5 {[%emt 0:00:29]} 14. O-O {[%emt 0:06:18]} Bxc3 {[%emt 0:07:13]} 15. Rxc3 {[%emt 0:00:23]} Qxe4 {[%emt 0:00:13]} 16. Qb3 {[%emt 0:09:34]} Nc6 {[%emt 0:01:33]} 17. Rf4 {[%emt 0:18:30]} Nxd4 {[%emt 0:04:31]} 18. Rxe4 {[%emt 0:01:42]} Nxb3 {[%emt 0:00:06]} 19. Rxb3 {[%emt 0:00:27]} Be6 {[%emt 0:00:15]} 20. Rc3 {[%emt 0:02:33]} Bxa2 {[%emt 0:02:33]} 21. Re7 {[%emt 0:00:12]} Bd5 {[%emt 0:00:26]} 22. Rcc7 {[%emt 0:00:05]} Rfe8 {[%emt 0:01:22]} 23. Bb6 {[%emt 0:01:02]} Rxe7 {[%emt 0:00:30]} 24. Rxe7 {[%emt 0:00:04]} Bc6 {[%emt 0:01:28]} 25. g3 {[%emt 0:00:18]} a5 {[%emt 0:00:40]} 26. Kf2 {[%emt 0:00:35]} a4 {[%emt 0:00:08]} 27. Re3 {[%emt 0:00:57]} f6 {[%emt 0:01:06]} 28. Bc5 {[%emt 0:00:29]} Ra5 {[%emt 0:00:42]} 29. Ba3 {[%emt 0:00:10]} Rd5 {[%emt 0:01:08]} 30. Ke2 {[%emt 0:00:13]} Bb5+ {[%emt 0:04:10]} 31. Ke1 {[%emt 0:00:08]} Rd7 {[%emt 0:00:21]} 32. Re7 {[%emt 0:02:45]} Rxe7+ {[%emt 0:01:28]} 33. Bxe7 {[%emt 0:00:03]} Kf7 {[%emt 0:00:07]} 34. Bb4 {[%emt 0:00:11]} Ke6 {[%emt 0:01:15]} 35. Kd2 {[%emt 0:01:21]} Kf5 {[%emt 0:00:57]} 36. Ke3 {[%emt 0:00:51]} Kg4 {[%emt 0:00:22]} 37. Kf2 {[%emt 0:00:19]} Bc6 {[%emt 0:01:35]} 38. Bc3 {[%emt 0:00:36]} Kh3 {[%emt 0:01:57]} 39. Kg1 {[%emt 0:00:03]} h5 {[%emt 0:00:24]} 40. Bd4 {[%emt 0:01:06]} h4 {[%emt 0:00:27]} 41. Kf2 {[%emt 0:01:53]} Kxh2 {[%emt 0:00:54]} 42. gxh4 {[%emt 0:00:03]} Kh3 {[%emt 0:00:09]} 43. h5 {[%emt 0:00:09]} Kg4 {[%emt 0:00:15]} 44. h6 {[%emt 0:00:05]} gxh6 {[%emt 0:00:06]} 45. Bxf6 {[%emt 0:00:05]} h5 {[%emt 0:00:24]} 46. Ke3 {[%emt 0:01:23]} Kf5 {[%emt 0:00:46]} 47. Bd8 {[%emt 0:07:27]} Ke5 {[%emt 0:00:12]} 48. Bh4 {[%emt 0:00:24]} Kd5 {[%emt 0:00:07]} 49. Bf6 {[%emt 0:00:09]} Kc4 {[%emt 0:00:10]} 50. Kd2 {[%emt 0:00:05]} Kb3 {[%emt 0:00:44]} 51. Kc1 {[%emt 0:01:06]} Be4 {[%emt 0:00:11]} 52. Be7 {[%emt 0:00:39]} b5 {[%emt 0:00:15]} 53. Bf6 {[%emt 0:00:09]} b4 {[%emt 0:00:23]} 54. Be7 {[%emt 0:00:08]} Bf5 {[%emt 0:00:44]} 55. Bf6 {[%emt 0:00:34]} a3 {[%emt 0:01:07]} 56. bxa3 {[%emt 0:00:06]} bxa3 {[%emt 0:00:35]} 57. Kd2 {[%emt 0:00:06]} a2 {[%emt 0:00:14]} 58. Ke3 {[%emt 0:00:12]} Kc2 {[%emt 0:00:26]} 59. Kf4 {[%emt 0:00:03]} Bg4 {[%emt 0:00:46]} 60. Kg3 {[%emt 0:00:05]} Kb1 {[%emt 0:00:05]} 61. Kh4 {[%emt 0:00:02]} a1=Q {[%emt 0:00:07]} 62. Bxa1 {[%emt 0:00:04]} Kxa1 {[%emt 0:00:06]} 63. Kg3 {[%emt 0:00:02]} Kb2 {[%emt 0:00:21]} 64. Kh4 {[%emt 0:00:04]} Kc3 {[%emt 0:00:07]} 65. Kg3 {[%emt 0:00:02]} Kd3 {[%emt 0:00:09]} 66. Kh2 {[%emt 0:00:14]} h4 {[%emt 0:00:14]} 67. Kg2 {[%emt 0:00:02]} Ke2 {[%emt 0:00:11]} 68. Kh2 {[%emt 0:00:05]} Kf2 {[%emt 0:00:10]} 69. Kh1 {[%emt 0:00:03]} Kg3 {[%emt 0:00:05]} 70. Kg1 {[%emt 0:00:04]} h3 71. Kh1 {[%emt 0:00:03]} Bf3+ {[%emt 0:00:21]} 0-1

[Event "XLII Barbera Open 2019"]
[Site "Barbera"]
[Date "2019.07.12"]
[Round "9.10"]
[White "Namitbir Singh Walia"]
[Black "Morales, Jhon Alexander"]
[Result "1-0"]
[ECO "E19"]
[WhiteElo "1760"]
[BlackElo "2422"]
[Annotator "NA"]
[PlyCount "79"]
[EventDate "2019.07.04"]
[EventType "swiss"]
[EventCountry "ESP"]
[SourceTitle "playchess.com"]
[Source "ChessBase"]
[SourceQuality "1"]
[TimeControl "5400+30"]

1. Nf3 Nf6 2. c4 e6 3. g3 a6 4. Bg2 b5 5. b3 Bb7 6. O-O c5 7. Nc3 Qb6 8. e3 Be7 9. Qe2 b4 10. Na4 Qc7 11. d4 d6 12. Bb2 Nbd7 13. Rad1 O-O 14. Ne1 Bxg2 15. Nxg2 Qc6 16. Nf4 cxd4 17. exd4 d5 18. c5 Bd8 19. Nd3 Qb5 20. Rc1 Nb8 21. c6 Nxc6 22. Rc5 Qb7 23. Rfc1 Ne7 24. Qe1 Rb8 25. Kg2 Nd7 26. R5c2 a5 27. f3 Bb6 28. a3 Nf5 29. axb4 Nxd4 30. Bxd4 Bxd4 31. Rc7 Qb5 32. Ndc5 Nxc5 33. Nxc5 Bxc5 34. bxc5 Qxb3 35. Rd7 Rb7 36. Rxb7 Qxb7 37. c6 Qc7 38. Rc5 Rc8 39. Qc3 f6 40. h4 1-0